{"text_format":"3","workbook":"xlsx","n_sheets":2,"sheets":["Cheltuieli","Categorie"],"not_rendered":{"defined_names":5},"read":"whole","date_system":"1900"}

{"sheet":"Cheltuieli","index":0,"n_rows":25,"n_cols":7,"rows_kept":25,"merged":[[0,1,0,5],[1,1,1,6]]}
[null,"BUGET DE CHELTUIELI",{"$nulls":4},{"$f":"TODAY()","v":"2018-06-19"}]
[null,"Numele firmei"]
[null,"Cheltuială","Categorie","Buget","Efectiv","Diferență (lei)","Diferență (%)"]
[null,"Publicitate","Operațiuni",null,null,{"$f":"IFERROR(SUM(Cheltuieli[Buget]-Cheltuieli[Efectiv]), \"\")","v":0},{"$f":"IFERROR(SUM(Cheltuieli[Diferență (lei)]/Cheltuieli[Buget]),\"\")","v":""}]
[null,"Datorii","Operațiuni",null,null,{"$f":"IFERROR(SUM(Cheltuieli[Buget]-Cheltuieli[Efectiv]), \"\")","v":0},{"$f":"IFERROR(SUM(Cheltuieli[Diferență (lei)]/Cheltuieli[Buget]),\"\")","v":""}]
[null,"Avantaje","Operațiuni",null,null,{"$f":"IFERROR(SUM(Cheltuieli[Buget]-Cheltuieli[Efectiv]), \"\")","v":0},{"$f":"IFERROR(SUM(Cheltuieli[Diferență (lei)]/Cheltuieli[Buget]),\"\")","v":""}]
[null,"Consumabile","Operațiuni",null,null,{"$f":"IFERROR(SUM(Cheltuieli[Buget]-Cheltuieli[Efectiv]), \"\")","v":0},{"$f":"IFERROR(SUM(Cheltuieli[Diferență (lei)]/Cheltuieli[Buget]),\"\")","v":""}]
[null,"Cheltuieli cu poșta","Operațiuni",null,null,{"$f":"IFERROR(SUM(Cheltuieli[Buget]-Cheltuieli[Efectiv]), \"\")","v":0},{"$f":"IFERROR(SUM(Cheltuieli[Diferență (lei)]/Cheltuieli[Buget]),\"\")","v":""}]
[null,"Chirie sau credit ipotecar","Operațiuni",null,null,{"$f":"IFERROR(SUM(Cheltuieli[Buget]-Cheltuieli[Efectiv]), \"\")","v":0},{"$f":"IFERROR(SUM(Cheltuieli[Diferență (lei)]/Cheltuieli[Buget]),\"\")","v":""}]
[null,"Cheltuieli vânzări","Operațiuni",null,null,{"$f":"IFERROR(SUM(Cheltuieli[Buget]-Cheltuieli[Efectiv]), \"\")","v":0},{"$f":"IFERROR(SUM(Cheltuieli[Diferență (lei)]/Cheltuieli[Buget]),\"\")","v":""}]
[null,"Taxe","Operațiuni",null,null,{"$f":"IFERROR(SUM(Cheltuieli[Buget]-Cheltuieli[Efectiv]), \"\")","v":0},{"$f":"IFERROR(SUM(Cheltuieli[Diferență (lei)]/Cheltuieli[Buget]),\"\")","v":""}]
[null,"Utilități","Operațiuni",null,null,{"$f":"IFERROR(SUM(Cheltuieli[Buget]-Cheltuieli[Efectiv]), \"\")","v":0},{"$f":"IFERROR(SUM(Cheltuieli[Diferență (lei)]/Cheltuieli[Buget]),\"\")","v":""}]
[null,"Altele","Operațiuni",null,null,{"$f":"IFERROR(SUM(Cheltuieli[Buget]-Cheltuieli[Efectiv]), \"\")","v":0},{"$f":"IFERROR(SUM(Cheltuieli[Diferență (lei)]/Cheltuieli[Buget]),\"\")","v":""}]
[null,"Asigurare","Operațiuni",null,null,{"$f":"IFERROR(SUM(Cheltuieli[Buget]-Cheltuieli[Efectiv]), \"\")","v":0},{"$f":"IFERROR(SUM(Cheltuieli[Diferență (lei)]/Cheltuieli[Buget]),\"\")","v":""}]
[null,"Dobândă","Operațiuni",null,null,{"$f":"IFERROR(SUM(Cheltuieli[Buget]-Cheltuieli[Efectiv]), \"\")","v":0},{"$f":"IFERROR(SUM(Cheltuieli[Diferență (lei)]/Cheltuieli[Buget]),\"\")","v":""}]
[null,"Telefon","Operațiuni",null,null,{"$f":"IFERROR(SUM(Cheltuieli[Buget]-Cheltuieli[Efectiv]), \"\")","v":0},{"$f":"IFERROR(SUM(Cheltuieli[Diferență (lei)]/Cheltuieli[Buget]),\"\")","v":""}]
[null,"Întreținere și reparații","Operațiuni",null,null,{"$f":"IFERROR(SUM(Cheltuieli[Buget]-Cheltuieli[Efectiv]), \"\")","v":0},{"$f":"IFERROR(SUM(Cheltuieli[Diferență (lei)]/Cheltuieli[Buget]),\"\")","v":""}]
[null,"Taxe legale","Operațiuni",null,null,{"$f":"IFERROR(SUM(Cheltuieli[Buget]-Cheltuieli[Efectiv]), \"\")","v":0},{"$f":"IFERROR(SUM(Cheltuieli[Diferență (lei)]/Cheltuieli[Buget]),\"\")","v":""}]
[null,"Amortizare","Operațiuni",null,null,{"$f":"IFERROR(SUM(Cheltuieli[Buget]-Cheltuieli[Efectiv]), \"\")","v":0},{"$f":"IFERROR(SUM(Cheltuieli[Diferență (lei)]/Cheltuieli[Buget]),\"\")","v":""}]
[null,"Livrare","Operațiuni",null,null,{"$f":"IFERROR(SUM(Cheltuieli[Buget]-Cheltuieli[Efectiv]), \"\")","v":0},{"$f":"IFERROR(SUM(Cheltuieli[Diferență (lei)]/Cheltuieli[Buget]),\"\")","v":""}]
[null,"Depozit","Operațiuni",null,null,{"$f":"IFERROR(SUM(Cheltuieli[Buget]-Cheltuieli[Efectiv]), \"\")","v":0},{"$f":"IFERROR(SUM(Cheltuieli[Diferență (lei)]/Cheltuieli[Buget]),\"\")","v":""}]
[null,"Magazin","Personale",null,null,{"$f":"IFERROR(SUM(Cheltuieli[Buget]-Cheltuieli[Efectiv]), \"\")","v":0},{"$f":"IFERROR(SUM(Cheltuieli[Diferență (lei)]/Cheltuieli[Buget]),\"\")","v":""}]
[null,"Agenți de vânzări","Personale",null,null,{"$f":"IFERROR(SUM(Cheltuieli[Buget]-Cheltuieli[Efectiv]), \"\")","v":0},{"$f":"IFERROR(SUM(Cheltuieli[Diferență (lei)]/Cheltuieli[Buget]),\"\")","v":""}]
[null,"Altele","Personale",null,null,{"$f":"IFERROR(SUM(Cheltuieli[Buget]-Cheltuieli[Efectiv]), \"\")","v":0},{"$f":"IFERROR(SUM(Cheltuieli[Diferență (lei)]/Cheltuieli[Buget]),\"\")","v":""}]
[null,"Total cheltuieli",null,{"$f":"IFERROR(SUM(Cheltuieli[Buget]), \"\")","v":0},{"$f":"IFERROR(SUM(Cheltuieli[Efectiv]), \"\")","v":0},{"$f":"IFERROR(SUM(Cheltuieli[Diferență (lei)]), \"\")","v":0},{"$f":"IFERROR(SUM(Cheltuieli[[#Totals],[Diferență (lei)]]/Cheltuieli[[#Totals],[Buget]]),\"\")","v":""}]

{"sheet":"Categorie","index":1,"n_rows":4,"n_cols":2,"rows_kept":4}
[null,"Căutare categorii"]
[null,"Categorie"]
[null,"Operațiuni"]
[null,"Personale"]